[Event "Titled Tuesday Blitz February 21 Early 2023"]
[White "Horvath, Dominik"]
[Black "Deac, Bogdan-Daniel"]
[WhiteFideId "1642561"]
[BlackFideId "1226380"]
[WhiteElo "2523"]
[BlackElo "2700"]
[Result "1/2-1/2"]
[Round "05"]
[TimeControl "180+2"]
[Date "2023.02.21"]
[WhiteClock "0:00:10"]
[BlackClock "0:00:05"]

1. e4 {[%clk 0:02:43]}  c6 {[%clk 0:03:00]} 2. d4 {[%clk 0:02:43]}  d5 {[%clk 0:03:00]} 3. exd5 {[%clk 0:02:44]}  cxd5 {[%clk 0:03:00]} 4. Nf3 {[%clk 0:02:44]}  Bg4 {[%clk 0:02:56]} 5. c3 {[%clk 0:02:43]}  Nc6 {[%clk 0:02:48]} 6. h3 {[%clk 0:02:43]}  Bxf3 {[%clk 0:02:46]} 7. Qxf3 {[%clk 0:02:43]}  e6 {[%clk 0:02:46]} 8. Bd3 {[%clk 0:02:41]}  Bd6 {[%clk 0:02:45]} 9. O-O {[%clk 0:02:40]}  Nge7 {[%clk 0:02:45]} 10. Nd2 {[%clk 0:02:40]}  Ng6 {[%clk 0:02:39]} 11. Re1 {[%clk 0:02:39]}  O-O {[%clk 0:02:32]} 12. Qh5 {[%clk 0:02:40]}  Qf6 {[%clk 0:02:01]} 13. Re3 {[%clk 0:02:15]}  e5 {[%clk 0:01:34]} 14. dxe5 {[%clk 0:01:57]}  Ncxe5 {[%clk 0:01:33]} 15. Bc2 {[%clk 0:01:55]}  Bc5 {[%clk 0:01:00]} 16. Re2 {[%clk 0:01:55]}  Rae8 {[%clk 0:00:58]} 17. Kf1 {[%clk 0:01:55]}  h6 {[%clk 0:00:49]} 18. Nb3 {[%clk 0:01:46]}  Bb6 {[%clk 0:00:39]} 19. Qf5 {[%clk 0:01:46]}  Qd6 {[%clk 0:00:31]} 20. h4 {[%clk 0:01:43]}  Nc4 {[%clk 0:00:23]} 21. Rxe8 {[%clk 0:01:25]}  Rxe8 {[%clk 0:00:22]} 22. g3 {[%clk 0:01:21]}  Qe7 {[%clk 0:00:18]} 23. Nd4 {[%clk 0:01:02]}  Bxd4 {[%clk 0:00:07]} 24. cxd4 {[%clk 0:01:03]}  Qb4 {[%clk 0:00:07]} 25. Bxh6 {[%clk 0:00:57]}  gxh6 {[%clk 0:00:06]} 26. h5 {[%clk 0:00:57]}  Nf8 {[%clk 0:00:04]} 27. Qg4+ {[%clk 0:00:54]}  Kh8 {[%clk 0:00:04]} 28. Qf4 {[%clk 0:00:54]}  Qd6 {[%clk 0:00:03]} 29. Qxf7 {[%clk 0:00:54]}  Qe6 {[%clk 0:00:03]} 30. Qf3 {[%clk 0:00:51]}  Kg7 {[%clk 0:00:03]} 31. Kg2 {[%clk 0:00:49]}  Nd6 {[%clk 0:00:02]} 32. Rh1 {[%clk 0:00:48]}  Ne4 {[%clk 0:00:02]} 33. Rh4 {[%clk 0:00:48]}  Nh7 {[%clk 0:00:02]} 34. Qf4 {[%clk 0:00:44]}  Rf8 {[%clk 0:00:01]} 35. Qg4+ {[%clk 0:00:35]}  Qxg4 {[%clk 0:00:01]} 36. Rxg4+ {[%clk 0:00:35]}  Kh8 {[%clk 0:00:02]} 37. Bxe4 {[%clk 0:00:34]}  Nf6 {[%clk 0:00:02]} 38. Rg6 {[%clk 0:00:31]}  dxe4 {[%clk 0:00:02]} 39. Rxh6+ {[%clk 0:00:31]}  Kg7 {[%clk 0:00:03]} 40. Rg6+ {[%clk 0:00:31]}  Kf7 {[%clk 0:00:03]} 41. g4 {[%clk 0:00:30]}  Rd8 {[%clk 0:00:04]} 42. Rh6 {[%clk 0:00:28]}  Nxg4 {[%clk 0:00:03]} 43. Rh7+ {[%clk 0:00:28]}  Kf6 {[%clk 0:00:04]} 44. Rxb7 {[%clk 0:00:28]}  Rxd4 {[%clk 0:00:05]} 45. Rxa7 {[%clk 0:00:27]}  Rd2 {[%clk 0:00:05]} 46. Kg3 {[%clk 0:00:28]}  Nxf2 {[%clk 0:00:04]} 47. Kf4 {[%clk 0:00:29]}  Rd3 {[%clk 0:00:03]} 48. Ra6+ {[%clk 0:00:28]}  Kf7 {[%clk 0:00:04]} 49. Ra3 {[%clk 0:00:26]}  Rd5 {[%clk 0:00:02]} 50. Ke3 {[%clk 0:00:25]}  Rf5 {[%clk 0:00:02]} 51. h6 {[%clk 0:00:23]}  Kg6 {[%clk 0:00:02]} 52. Ra6+ {[%clk 0:00:23]}  Kh7 {[%clk 0:00:03]} 53. Re6 {[%clk 0:00:19]}  Rf3+ {[%clk 0:00:03]} 54. Ke2 {[%clk 0:00:19]}  Rf7 {[%clk 0:00:03]} 55. a4 {[%clk 0:00:19]}  Nh1 {[%clk 0:00:03]} 56. Ke3 {[%clk 0:00:18]}  Ng3 {[%clk 0:00:03]} 57. a5 {[%clk 0:00:19]}  Rf3+ {[%clk 0:00:03]} 58. Kd2 {[%clk 0:00:19]}  Rb3 {[%clk 0:00:03]} 59. a6 {[%clk 0:00:18]}  Rxb2+ {[%clk 0:00:03]} 60. Ke3 {[%clk 0:00:17]}  Rb3+ {[%clk 0:00:03]} 61. Kf4 {[%clk 0:00:17]}  Rf3+ {[%clk 0:00:02]} 62. Kg4 {[%clk 0:00:18]}  Ra3 {[%clk 0:00:03]} 63. a7 {[%clk 0:00:18]}  Ne2 {[%clk 0:00:02]} 64. Rxe4 {[%clk 0:00:17]}  Nc1 {[%clk 0:00:01]} 65. Re6 {[%clk 0:00:13]}  Rxa7 {[%clk 0:00:01]} 66. Kh5 {[%clk 0:00:14]}  Ra5+ {[%clk 0:00:01]} 67. Kh4 {[%clk 0:00:14]}  Nd3 {[%clk 0:00:02]} 68. Rd6 {[%clk 0:00:14]}  Ra4+ {[%clk 0:00:02]} 69. Kg3 {[%clk 0:00:15]}  Nc5 {[%clk 0:00:02]} 70. Rd5 {[%clk 0:00:14]}  Ne4+ {[%clk 0:00:02]} 71. Kg2 {[%clk 0:00:15]}  Ra2+ {[%clk 0:00:02]} 72. Kf3 {[%clk 0:00:15]}  Nf6 {[%clk 0:00:02]} 73. Rd6 {[%clk 0:00:15]}  Ne8 {[%clk 0:00:01]} 74. Rc6 {[%clk 0:00:14]}  Ra8 {[%clk 0:00:01]} 75. Kf4 {[%clk 0:00:15]}  Ra7 {[%clk 0:00:02]} 76. Kg5 {[%clk 0:00:15]}  Nc7 {[%clk 0:00:02]} 77. Kh5 {[%clk 0:00:14]}  Ra5+ {[%clk 0:00:03]} 78. Kh4 {[%clk 0:00:13]}  Nd5 {[%clk 0:00:03]} 79. Rd6 {[%clk 0:00:13]}  Ne3 {[%clk 0:00:03]} 80. Rd7+ {[%clk 0:00:12]}  Kxh6 {[%clk 0:00:03]} 81. Rb7 {[%clk 0:00:12]}  Nf5+ {[%clk 0:00:02]} 82. Kg4 {[%clk 0:00:12]}  Kg6 {[%clk 0:00:03]} 83. Rb6+ {[%clk 0:00:12]}  Kf7 {[%clk 0:00:02]} 84. Kf4 {[%clk 0:00:12]}  Ne7 {[%clk 0:00:03]} 85. Rh6 {[%clk 0:00:12]}  Ng6+ {[%clk 0:00:02]} 86. Ke4 {[%clk 0:00:12]}  Kf6 {[%clk 0:00:03]} 87. Kd4 {[%clk 0:00:12]}  Ra4+ {[%clk 0:00:03]} 88. Kc5 {[%clk 0:00:12]}  Rg4 {[%clk 0:00:03]} 89. Rh1 {[%clk 0:00:12]}  Ke6 {[%clk 0:00:03]} 90. Rh6 {[%clk 0:00:12]}  Ke7 {[%clk 0:00:03]} 91. Rh1 {[%clk 0:00:12]}  Ne5 {[%clk 0:00:03]} 92. Kd5 {[%clk 0:00:13]}  Nd7 {[%clk 0:00:03]} 93. Rh7+ {[%clk 0:00:13]}  Kd8 {[%clk 0:00:03]} 94. Rh1 {[%clk 0:00:13]}  Nf6+ {[%clk 0:00:02]} 95. Ke6 {[%clk 0:00:13]}  Nd7 {[%clk 0:00:02]} 96. Rh8+ {[%clk 0:00:13]}  Kc7 {[%clk 0:00:03]} 97. Rh1 {[%clk 0:00:13]}  Re4+ {[%clk 0:00:03]} 98. Kd5 {[%clk 0:00:13]}  Re2 {[%clk 0:00:04]} 99. Kd4 {[%clk 0:00:14]}  Kd6 {[%clk 0:00:03]} 100. Rh6+ {[%clk 0:00:14]}  Ke7 {[%clk 0:00:03]} 101. Rh7+ {[%clk 0:00:15]}  Ke6 {[%clk 0:00:03]} 102. Rh6+ {[%clk 0:00:14]}  Nf6 {[%clk 0:00:04]} 103. Kc5 {[%clk 0:00:13]}  Ra2 {[%clk 0:00:04]} 104. Rh1 {[%clk 0:00:13]}  Ke5 {[%clk 0:00:04]} 105. Kc4 {[%clk 0:00:12]}  Ne4 {[%clk 0:00:04]} 106. Rh5+ {[%clk 0:00:12]}  Kf4 {[%clk 0:00:05]} 107. Rh4+ {[%clk 0:00:11]}  Kf5 {[%clk 0:00:04]} 108. Rh5+ {[%clk 0:00:11]}  Kg4 {[%clk 0:00:04]} 109. Rh8 {[%clk 0:00:10]}  Kf4 {[%clk 0:00:04]} 110. Rh4+ {[%clk 0:00:10]}  Kf3 {[%clk 0:00:04]} 111. Rh3+ {[%clk 0:00:10]}  Kg4 {[%clk 0:00:04]} 112. Rh8 {[%clk 0:00:11]}  Ra1 {[%clk 0:00:04]} 113. Kd4 {[%clk 0:00:11]}  Ng5 {[%clk 0:00:04]} 114. Kc4 {[%clk 0:00:10]}  Rc1+ {[%clk 0:00:04]} 115. Kd3 {[%clk 0:00:10]}  Kf5 {[%clk 0:00:04]} 116. Rf8+ {[%clk 0:00:10]}  Ke5 {[%clk 0:00:04]} 117. Re8+ {[%clk 0:00:10]}  Ne6 {[%clk 0:00:05]} 118. Rh8 {[%clk 0:00:11]}  Nf4+ {[%clk 0:00:05]} 119. Ke3 {[%clk 0:00:11]}  Rc3+ {[%clk 0:00:05]} 120. Kd2 {[%clk 0:00:11]}  Ra3 {[%clk 0:00:05]} 121. Kc2 {[%clk 0:00:12]}  Ke4 {[%clk 0:00:05]} 122. Re8+ {[%clk 0:00:12]}  Kd4 {[%clk 0:00:06]} 123. Kb2 {[%clk 0:00:12]}  Rh3 {[%clk 0:00:05]} 124. Rf8 {[%clk 0:00:11]}  Nd3+ {[%clk 0:00:05]} 125. Kb3 {[%clk 0:00:10]}  Nc5+ {[%clk 0:00:05]} 126. Kc2 {[%clk 0:00:10]}  Rh2+ {[%clk 0:00:05]} 127. Kd1 {[%clk 0:00:10]}  Kc3 {[%clk 0:00:05]} 128. Ke1 {[%clk 0:00:09]}  Nd3+ {[%clk 0:00:05]} 129. Kf1 {[%clk 0:00:10]}  Kd2 {[%clk 0:00:06]} 130. Re8 {[%clk 0:00:10]}  Rh4 {[%clk 0:00:05]} 1/2-1/2


[Site "https://www.chess.com"]

[Event "Titled Tuesday Blitz February 21 Early 2023"]
[White "Lenderman, Aleksandr"]
[Black "EREBUNI91"]
[WhiteFideId "2021285"]
[WhiteElo "2572"]
[BlackElo "2722"]
[Result "1-0"]
[Round "05"]
[TimeControl "180+2"]
[Date "2023.02.21"]
[WhiteClock "0:01:08"]
[BlackClock "0:00:10"]

1. Nf3 {[%clk 0:02:47]}  Nf6 {[%clk 0:02:59]} 2. c4 {[%clk 0:02:47]}  e6 {[%clk 0:02:58]} 3. Nc3 {[%clk 0:02:47]}  d5 {[%clk 0:02:57]} 4. e3 {[%clk 0:02:47]}  Be7 {[%clk 0:02:53]} 5. b3 {[%clk 0:02:47]}  O-O {[%clk 0:02:54]} 6. Bb2 {[%clk 0:02:47]}  b6 {[%clk 0:02:52]} 7. cxd5 {[%clk 0:02:47]}  Nxd5 {[%clk 0:02:49]} 8. Nxd5 {[%clk 0:02:47]}  exd5 {[%clk 0:02:50]} 9. Qc2 {[%clk 0:02:46]}  c5 {[%clk 0:02:34]} 10. d4 {[%clk 0:02:46]}  Nc6 {[%clk 0:02:30]} 11. Bd3 {[%clk 0:02:38]}  Nb4 {[%clk 0:02:22]} 12. Bxh7+ {[%clk 0:02:37]}  Kh8 {[%clk 0:02:22]} 13. Qb1 {[%clk 0:02:37]}  g6 {[%clk 0:02:21]} 14. Bxg6 {[%clk 0:02:38]}  fxg6 {[%clk 0:02:22]} 15. Qxg6 {[%clk 0:02:37]}  Bf5 {[%clk 0:02:21]} 16. dxc5+ {[%clk 0:02:34]}  Bf6 {[%clk 0:02:21]} 17. Qh5+ {[%clk 0:02:30]}  Bh7 {[%clk 0:01:49]} 18. Bxf6+ {[%clk 0:02:17]}  Qxf6 {[%clk 0:01:50]} 19. O-O {[%clk 0:02:16]}  bxc5 {[%clk 0:01:47]} 20. a3 {[%clk 0:02:11]}  Nd3 {[%clk 0:01:44]} 21. Qxd5 {[%clk 0:02:09]}  Rad8 {[%clk 0:01:40]} 22. Qh5 {[%clk 0:02:08]}  Rg8 {[%clk 0:01:39]} 23. Rad1 {[%clk 0:02:02]}  Qg7 {[%clk 0:01:08]} 24. g3 {[%clk 0:02:00]}  Qg6 {[%clk 0:00:51]} 25. Qxg6 {[%clk 0:01:42]}  Bxg6 {[%clk 0:00:52]} 26. Nh4 {[%clk 0:01:41]}  Bf7 {[%clk 0:00:50]} 27. Rb1 {[%clk 0:01:36]}  Rb8 {[%clk 0:00:51]} 28. Rfd1 {[%clk 0:01:35]}  Rgd8 {[%clk 0:00:48]} 29. b4 {[%clk 0:01:32]}  cxb4 {[%clk 0:00:48]} 30. axb4 {[%clk 0:01:32]}  Ba2 {[%clk 0:00:35]} 31. Ra1 {[%clk 0:01:27]}  Nxb4 {[%clk 0:00:34]} 32. Ng6+ {[%clk 0:01:25]}  Kg7 {[%clk 0:00:16]} 33. Ne5 {[%clk 0:01:26]}  Rxd1+ {[%clk 0:00:15]} 34. Rxd1 {[%clk 0:01:24]}  a5 {[%clk 0:00:16]} 35. Rd7+ {[%clk 0:01:24]}  Kf6 {[%clk 0:00:15]} 36. f4 {[%clk 0:01:22]}  a4 {[%clk 0:00:15]} 37. Ra7 {[%clk 0:01:21]}  Bb3 {[%clk 0:00:15]} 38. g4 {[%clk 0:01:14]}  Nc2 {[%clk 0:00:15]} 39. Nd7+ {[%clk 0:01:14]}  Ke6 {[%clk 0:00:13]} 40. Nxb8 {[%clk 0:01:15]}  a3 {[%clk 0:00:13]} 41. Nc6 {[%clk 0:01:12]}  a2 {[%clk 0:00:12]} 42. Nd4+ {[%clk 0:01:13]}  Nxd4 {[%clk 0:00:13]} 43. exd4 {[%clk 0:01:13]}  Kd5 {[%clk 0:00:14]} 44. f5 {[%clk 0:01:10]}  Kxd4 {[%clk 0:00:14]} 45. f6 {[%clk 0:01:11]}  Kc3 {[%clk 0:00:14]} 46. g5 {[%clk 0:01:11]}  Kb2 {[%clk 0:00:15]} 47. g6 {[%clk 0:01:09]}  Ba4 {[%clk 0:00:10]} 48. Rxa4 {[%clk 0:01:08]} 1-0


[Site "https://www.chess.com"]

[Event "Titled Tuesday Blitz February 21 Early 2023"]
[White "Costachi, Mihnea"]
[Black "Daneshvar, Bardiya"]
[WhiteFideId "1217518"]
[BlackFideId "12576468"]
[WhiteElo "2476"]
[BlackElo "2540"]
[Result "0-1"]
[Round "05"]
[TimeControl "180+2"]
[Date "2023.02.21"]
[WhiteClock "0:00:03"]
[BlackClock "0:01:03"]

1. Nc3 {[%clk 0:03:00]}  Nc6 {[%clk 0:03:00]} 2. d4 {[%clk 0:03:00]}  g6 {[%clk 0:02:59]} 3. d5 {[%clk 0:03:00]}  Nb8 {[%clk 0:03:00]} 4. e4 {[%clk 0:03:00]}  Bg7 {[%clk 0:03:00]} 5. f4 {[%clk 0:02:58]}  d6 {[%clk 0:03:01]} 6. Nf3 {[%clk 0:02:58]}  c6 {[%clk 0:03:01]} 7. Be2 {[%clk 0:02:47]}  Bxc3+ {[%clk 0:02:58]} 8. bxc3 {[%clk 0:02:46]}  Nf6 {[%clk 0:02:59]} 9. Qd4 {[%clk 0:02:29]}  cxd5 {[%clk 0:02:50]} 10. exd5 {[%clk 0:02:25]}  Qa5 {[%clk 0:02:50]} 11. Bc4 {[%clk 0:02:19]}  Nbd7 {[%clk 0:02:34]} 12. O-O {[%clk 0:02:13]}  Nb6 {[%clk 0:02:32]} 13. Re1 {[%clk 0:02:03]}  Kd8 {[%clk 0:02:30]} 14. Kh1 {[%clk 0:01:22]}  Nxc4 {[%clk 0:02:26]} 15. Qxc4 {[%clk 0:01:23]}  Qxd5 {[%clk 0:02:26]} 16. Qe2 {[%clk 0:01:21]}  Re8 {[%clk 0:02:23]} 17. Ba3 {[%clk 0:01:21]}  Bg4 {[%clk 0:02:17]} 18. Rf1 {[%clk 0:00:50]}  Qe4 {[%clk 0:02:07]} 19. Qb5 {[%clk 0:00:46]}  Qc6 {[%clk 0:02:04]} 20. Qa5+ {[%clk 0:00:40]}  b6 {[%clk 0:02:02]} 21. Qb4 {[%clk 0:00:36]}  Nd5 {[%clk 0:01:53]} 22. Qd4 {[%clk 0:00:36]}  Kc8 {[%clk 0:01:42]} 23. Ng5 {[%clk 0:00:33]}  f6 {[%clk 0:01:36]} 24. Ne4 {[%clk 0:00:33]}  Bf5 {[%clk 0:01:36]} 25. Rfe1 {[%clk 0:00:17]}  Kb7 {[%clk 0:01:25]} 26. c4 {[%clk 0:00:14]}  Bxe4 {[%clk 0:01:20]} 27. Rxe4 {[%clk 0:00:12]}  Nxf4 {[%clk 0:01:20]} 28. Rae1 {[%clk 0:00:06]}  e5 {[%clk 0:01:18]} 29. Qd2 {[%clk 0:00:06]}  f5 {[%clk 0:01:15]} 30. R4e3 {[%clk 0:00:07]}  Rad8 {[%clk 0:01:13]} 31. Kg1 {[%clk 0:00:06]}  Qxc4 {[%clk 0:01:12]} 32. g3 {[%clk 0:00:05]}  Nh3+ {[%clk 0:01:11]} 33. Kg2 {[%clk 0:00:05]}  Ng5 {[%clk 0:01:02]} 34. Rc3 {[%clk 0:00:05]}  Ne4 {[%clk 0:01:02]} 35. Rxc4 {[%clk 0:00:03]}  Nxd2 {[%clk 0:01:03]} 36. Rc3 {[%clk 0:00:04]}  Ne4 {[%clk 0:01:02]} 37. Rd3 {[%clk 0:00:04]}  d5 {[%clk 0:01:02]} 38. Re2 {[%clk 0:00:04]}  d4 {[%clk 0:01:02]} 39. Bb2 {[%clk 0:00:04]}  Nc5 {[%clk 0:01:02]} 40. Rd1 {[%clk 0:00:04]}  Kc6 {[%clk 0:01:02]} 41. c3 {[%clk 0:00:03]}  d3 {[%clk 0:01:03]} 42. Ree1 {[%clk 0:00:03]}  e4 {[%clk 0:01:02]} 43. Bc1 {[%clk 0:00:03]}  Kd5 {[%clk 0:01:02]} 44. Be3 {[%clk 0:00:04]}  Na4 {[%clk 0:01:02]} 45. Rc1 {[%clk 0:00:04]}  Rc8 {[%clk 0:01:02]} 46. Bd2 {[%clk 0:00:04]}  Rc4 {[%clk 0:01:02]} 47. Kf2 {[%clk 0:00:04]}  Rec8 {[%clk 0:01:03]} 48. g4 {[%clk 0:00:04]}  Rxc3 {[%clk 0:01:02]} 49. Bxc3 {[%clk 0:00:04]}  Nxc3 {[%clk 0:01:02]} 50. Rf1 {[%clk 0:00:02]}  f4 {[%clk 0:01:02]} 51. Kg2 {[%clk 0:00:02]}  g5 {[%clk 0:01:02]} 52. h4 {[%clk 0:00:02]}  h6 {[%clk 0:01:02]} 53. hxg5 {[%clk 0:00:03]}  hxg5 {[%clk 0:01:03]} 54. Rh1 {[%clk 0:00:04]}  Kd4 {[%clk 0:01:03]} 55. Rxc3 {[%clk 0:00:03]}  Rxc3 {[%clk 0:01:03]} 0-1


[Site "https://www.chess.com"]

[Event "Titled Tuesday Blitz February 21 Early 2023"]
[White "Hasangatin, Ramil"]
[Black "Erigaisi Arjun"]
[WhiteFideId "4122160"]
[BlackFideId "35009192"]
[WhiteElo "2457"]
[BlackElo "2701"]
[Result "0-1"]
[Round "05"]
[TimeControl "180+2"]
[Date "2023.02.21"]
[WhiteClock "0:00:02"]
[BlackClock "0:00:51"]

1. e4 {[%clk 0:02:56]}  e6 {[%clk 0:02:59]} 2. d3 {[%clk 0:02:56]}  d5 {[%clk 0:02:57]} 3. Qe2 {[%clk 0:02:56]}  Nf6 {[%clk 0:02:57]} 4. g3 {[%clk 0:02:56]}  c5 {[%clk 0:02:57]} 5. Nf3 {[%clk 0:02:56]}  Nc6 {[%clk 0:02:56]} 6. Bg2 {[%clk 0:02:56]}  Be7 {[%clk 0:02:55]} 7. O-O {[%clk 0:02:56]}  O-O {[%clk 0:02:56]} 8. e5 {[%clk 0:02:57]}  Nd7 {[%clk 0:02:54]} 9. c4 {[%clk 0:02:58]}  a6 {[%clk 0:02:51]} 10. Re1 {[%clk 0:02:55]}  b5 {[%clk 0:02:48]} 11. b3 {[%clk 0:02:56]}  bxc4 {[%clk 0:02:41]} 12. bxc4 {[%clk 0:02:54]}  Rb8 {[%clk 0:02:41]} 13. Nc3 {[%clk 0:02:51]}  Nd4 {[%clk 0:02:38]} 14. Nxd4 {[%clk 0:02:50]}  cxd4 {[%clk 0:02:39]} 15. Nxd5 {[%clk 0:02:49]}  exd5 {[%clk 0:02:39]} 16. cxd5 {[%clk 0:02:50]}  Bb4 {[%clk 0:02:35]} 17. Bd2 {[%clk 0:02:45]}  Re8 {[%clk 0:02:13]} 18. f4 {[%clk 0:02:35]}  Bc3 {[%clk 0:02:08]} 19. Rab1 {[%clk 0:02:19]}  Rxb1 {[%clk 0:02:06]} 20. Rxb1 {[%clk 0:02:20]}  Nc5 {[%clk 0:02:01]} 21. Bxc3 {[%clk 0:01:44]}  dxc3 {[%clk 0:02:02]} 22. d4 {[%clk 0:01:45]}  Bf5 {[%clk 0:01:47]} 23. Rc1 {[%clk 0:01:37]}  Na4 {[%clk 0:01:47]} 24. Qc4 {[%clk 0:01:36]}  Qd7 {[%clk 0:01:37]} 25. d6 {[%clk 0:01:09]}  Qb5 {[%clk 0:01:25]} 26. Qxb5 {[%clk 0:00:43]}  axb5 {[%clk 0:01:26]} 27. Bc6 {[%clk 0:00:43]}  Rb8 {[%clk 0:01:27]} 28. d7 {[%clk 0:00:25]}  c2 {[%clk 0:01:17]} 29. Bxb5 {[%clk 0:00:22]}  Nc3 {[%clk 0:01:17]} 30. Ba6 {[%clk 0:00:15]}  Kf8 {[%clk 0:01:01]} 31. Kf2 {[%clk 0:00:13]}  Nxa2 {[%clk 0:00:50]} 32. Bc8 {[%clk 0:00:01]}  Ke7 {[%clk 0:00:50]} 33. d8=Q+ {[%clk 0:00:01]}  Kxd8 {[%clk 0:00:50]} 34. Bxf5 {[%clk 0:00:01]}  Nxc1 {[%clk 0:00:51]} 35. Bxc2 {[%clk 0:00:02]}  Rb2 {[%clk 0:00:51]} 0-1


[Site "https://www.chess.com"]

[Event "Titled Tuesday Blitz February 21 Early 2023"]
[White "Shimanov, Aleksandr"]
[Black "Korchmar, Vasiliy"]
[WhiteFideId "4198603"]
[BlackFideId "24131750"]
[WhiteElo "2581"]
[BlackElo "2438"]
[Result "1-0"]
[Round "05"]
[TimeControl "180+2"]
[Date "2023.02.21"]
[WhiteClock "0:01:37"]
[BlackClock "0:00:12"]

1. e4 {[%clk 0:03:00]}  c5 {[%clk 0:02:56]} 2. d4 {[%clk 0:02:47]}  cxd4 {[%clk 0:02:56]} 3. Qxd4 {[%clk 0:02:47]}  Nc6 {[%clk 0:02:48]} 4. Qd3 {[%clk 0:02:48]}  g6 {[%clk 0:02:37]} 5. Nc3 {[%clk 0:02:48]}  Bg7 {[%clk 0:02:38]} 6. Nf3 {[%clk 0:02:48]}  Nf6 {[%clk 0:02:37]} 7. Be2 {[%clk 0:02:48]}  O-O {[%clk 0:02:37]} 8. O-O {[%clk 0:02:47]}  d5 {[%clk 0:02:23]} 9. Nxd5 {[%clk 0:02:40]}  Nxd5 {[%clk 0:02:22]} 10. exd5 {[%clk 0:02:40]}  Nb4 {[%clk 0:02:22]} 11. Qb3 {[%clk 0:02:40]}  a5 {[%clk 0:01:53]} 12. c3 {[%clk 0:02:25]}  Na6 {[%clk 0:01:34]} 13. Be3 {[%clk 0:02:25]}  Bf5 {[%clk 0:01:28]} 14. a4 {[%clk 0:02:21]}  Qc8 {[%clk 0:01:22]} 15. Qb6 {[%clk 0:02:02]}  Nc7 {[%clk 0:01:15]} 16. Rfd1 {[%clk 0:02:02]}  Rd8 {[%clk 0:01:10]} 17. c4 {[%clk 0:01:59]}  Bc2 {[%clk 0:01:01]} 18. Rd2 {[%clk 0:01:50]}  Ra6 {[%clk 0:01:01]} 19. Qc5 {[%clk 0:01:50]}  Bxb2 {[%clk 0:00:43]} 20. Ra2 {[%clk 0:01:41]}  b6 {[%clk 0:00:23]} 21. Qxe7 {[%clk 0:01:40]}  Re8 {[%clk 0:00:23]} 22. Qh4 {[%clk 0:01:40]}  Rxe3 {[%clk 0:00:14]} 23. fxe3 {[%clk 0:01:37]}  Bc1 {[%clk 0:00:12]} 24. Raxc2 {[%clk 0:01:36]}  Bxd2 {[%clk 0:00:12]} 25. Rxd2 {[%clk 0:01:37]} 1-0


[Site "https://www.chess.com"]

[Event "Titled Tuesday Blitz February 21 Early 2023"]
[White "Tang, Andrew"]
[Black "Csonka, Balazs"]
[WhiteFideId "2059630"]
[BlackFideId "742910"]
[WhiteElo "2523"]
[BlackElo "2496"]
[Result "1-0"]
[Round "05"]
[TimeControl "180+2"]
[Date "2023.02.21"]
[WhiteClock "0:00:06"]
[BlackClock "0:00:05"]

1. d4 {[%clk 0:02:31]}  Nf6 {[%clk 0:02:59]} 2. c4 {[%clk 0:02:30]}  e6 {[%clk 0:02:59]} 3. Nc3 {[%clk 0:02:30]}  d5 {[%clk 0:02:59]} 4. cxd5 {[%clk 0:02:31]}  Nxd5 {[%clk 0:03:00]} 5. e4 {[%clk 0:02:31]}  Nxc3 {[%clk 0:03:00]} 6. bxc3 {[%clk 0:02:32]}  c5 {[%clk 0:03:00]} 7. Nf3 {[%clk 0:02:33]}  cxd4 {[%clk 0:03:00]} 8. cxd4 {[%clk 0:02:34]}  Bb4+ {[%clk 0:03:00]} 9. Bd2 {[%clk 0:02:34]}  Bxd2+ {[%clk 0:03:00]} 10. Qxd2 {[%clk 0:02:35]}  O-O {[%clk 0:03:01]} 11. Rc1 {[%clk 0:02:36]}  Nc6 {[%clk 0:02:52]} 12. Bb5 {[%clk 0:02:30]}  Bd7 {[%clk 0:02:52]} 13. O-O {[%clk 0:02:30]}  Ne5 {[%clk 0:02:52]} 14. Nxe5 {[%clk 0:02:12]}  Bxb5 {[%clk 0:02:51]} 15. Rfe1 {[%clk 0:02:12]}  f6 {[%clk 0:02:37]} 16. Ng4 {[%clk 0:02:04]}  Qd7 {[%clk 0:02:33]} 17. Ne3 {[%clk 0:01:59]}  Rfd8 {[%clk 0:02:17]} 18. d5 {[%clk 0:01:58]}  exd5 {[%clk 0:02:10]} 19. exd5 {[%clk 0:01:59]}  Rac8 {[%clk 0:02:04]} 20. Qb4 {[%clk 0:01:55]}  a6 {[%clk 0:01:46]} 21. h4 {[%clk 0:01:54]}  Re8 {[%clk 0:01:33]} 22. h5 {[%clk 0:01:49]}  h6 {[%clk 0:01:32]} 23. Qf4 {[%clk 0:01:41]}  Re5 {[%clk 0:01:20]} 24. Qf3 {[%clk 0:01:25]}  Rce8 {[%clk 0:01:08]} 25. Red1 {[%clk 0:01:15]}  Qd6 {[%clk 0:00:59]} 26. Qg3 {[%clk 0:01:04]}  Qd7 {[%clk 0:00:48]} 27. Rc3 {[%clk 0:00:44]}  Rc8 {[%clk 0:00:27]} 28. Rdc1 {[%clk 0:00:35]}  Rxc3 {[%clk 0:00:23]} 29. Rxc3 {[%clk 0:00:36]}  Be2 {[%clk 0:00:23]} 30. d6 {[%clk 0:00:24]}  Qxd6 {[%clk 0:00:17]} 31. Rc8+ {[%clk 0:00:24]}  Kf7 {[%clk 0:00:16]} 32. Qg6+ {[%clk 0:00:24]}  Ke6 {[%clk 0:00:14]} 33. Qe8+ {[%clk 0:00:17]}  Qe7 {[%clk 0:00:13]} 34. Qg8+ {[%clk 0:00:16]}  Kd7 {[%clk 0:00:12]} 35. Rb8 {[%clk 0:00:14]}  Kc7 {[%clk 0:00:12]} 36. Qc8+ {[%clk 0:00:13]}  Kb6 {[%clk 0:00:12]} 37. Qc3 {[%clk 0:00:08]}  Bb5 {[%clk 0:00:10]} 38. a4 {[%clk 0:00:06]}  Rxe3 {[%clk 0:00:10]} 39. fxe3 {[%clk 0:00:03]}  Bxa4 {[%clk 0:00:10]} 40. Qd4+ {[%clk 0:00:03]}  Kc7 {[%clk 0:00:10]} 41. Rg8 {[%clk 0:00:03]}  Bc6 {[%clk 0:00:09]} 42. Qf4+ {[%clk 0:00:04]}  Kb6 {[%clk 0:00:09]} 43. Qg3 {[%clk 0:00:04]}  Qe5 {[%clk 0:00:07]} 44. Qxe5 {[%clk 0:00:04]}  fxe5 {[%clk 0:00:08]} 45. Rxg7 {[%clk 0:00:04]}  a5 {[%clk 0:00:09]} 46. Kf2 {[%clk 0:00:02]}  a4 {[%clk 0:00:09]} 47. e4 {[%clk 0:00:03]}  Bxe4 {[%clk 0:00:07]} 48. Rg3 {[%clk 0:00:04]}  Kc5 {[%clk 0:00:06]} 49. Re3 {[%clk 0:00:04]}  Kd4 {[%clk 0:00:06]} 50. g4 {[%clk 0:00:05]}  b5 {[%clk 0:00:06]} 51. g5 {[%clk 0:00:04]}  hxg5 {[%clk 0:00:07]} 52. h6 {[%clk 0:00:03]}  Bh7 {[%clk 0:00:06]} 53. Rf3 {[%clk 0:00:03]}  b4 {[%clk 0:00:07]} 54. Rf7 {[%clk 0:00:04]}  Bg6 {[%clk 0:00:06]} 55. Rg7 {[%clk 0:00:05]}  Be4 {[%clk 0:00:06]} 56. Rd7+ {[%clk 0:00:04]}  Kc3 {[%clk 0:00:06]} 57. Re7 {[%clk 0:00:03]}  a3 {[%clk 0:00:06]} 58. Rxe5 {[%clk 0:00:04]}  Bc2 {[%clk 0:00:06]} 59. Rc5+ {[%clk 0:00:03]}  Kb2 {[%clk 0:00:06]} 60. Rxc2+ {[%clk 0:00:03]}  Kxc2 {[%clk 0:00:07]} 61. h7 {[%clk 0:00:03]}  b3 {[%clk 0:00:08]} 62. h8=Q {[%clk 0:00:04]}  b2 {[%clk 0:00:09]} 63. Qh7+ {[%clk 0:00:04]}  Kc1 {[%clk 0:00:09]} 64. Qh1+ {[%clk 0:00:05]}  Kc2 {[%clk 0:00:09]} 65. Qe4+ {[%clk 0:00:05]}  Kc1 {[%clk 0:00:09]} 66. Qc4+ {[%clk 0:00:06]}  Kd2 {[%clk 0:00:08]} 67. Qb3 {[%clk 0:00:06]}  Kc1 {[%clk 0:00:08]} 68. Qc3+ {[%clk 0:00:06]}  Kd1 {[%clk 0:00:08]} 69. Ke3 {[%clk 0:00:06]}  b1=Q {[%clk 0:00:05]} 70. Qd2# {[%clk 0:00:06]} 1-0


[Site "https://www.chess.com"]